[Event "*** Titled Tuesday Blitz"]
[Site "Chess.com"]
[Date "2021.04.06"]
[Round "5"]
[White "serhanberat_ozdemir"]
[Black "exoticprincess"]
[Result "0-1"]
[WhiteElo "2632"]
[BlackElo "2926"]
[TimeControl "180+1"]
[EndTime "10:56:05 PDT"]
[Termination "exoticprincess won by resignation"]

1. e4 {[%clk 0:03:00.9]} 1... c6 {[%clk 0:03:00.9]} 2. d4 {[%clk 0:03:00.8]}
2... d5 {[%clk 0:03:01.8]} 3. exd5 {[%clk 0:03:01.6]} 3... cxd5 {[%clk
0:03:01.9]} 4. c4 {[%clk 0:03:02.5]} 4... e6 {[%clk 0:03:01.6]} 5. Nc3 {[%clk
0:03:03]} 5... Nf6 {[%clk 0:03:02.1]} 6. Nf3 {[%clk 0:03:02.2]} 6... Be7 {[%clk
0:03:02.6]} 7. Bd3 {[%clk 0:03:01]} 7... O-O {[%clk 0:03:02.7]} 8. O-O {[%clk
0:03:00.7]} 8... Nc6 {[%clk 0:03:03.3]} 9. Bg5 {[%clk 0:02:52]} 9... h6 {[%clk
0:03:02.8]} 10. Be3 {[%clk 0:02:51.2]} 10... Re8 {[%clk 0:03:02.9]} 11. Rc1
{[%clk 0:02:48.6]} 11... Bf8 {[%clk 0:03:02.9]} 12. Qe2 {[%clk 0:02:47.2]} 12...
dxc4 {[%clk 0:02:58.7]} 13. Bxc4 {[%clk 0:02:48.1]} 13... Bd7 {[%clk 0:02:55]}
14. Rfd1 {[%clk 0:02:47.3]} 14... Nb4 {[%clk 0:02:53.3]} 15. Ne5 {[%clk
0:02:44.2]} 15... Bc6 {[%clk 0:02:50.1]} 16. a3 {[%clk 0:02:19]} 16... Nbd5
{[%clk 0:02:48.7]} 17. Nxc6 {[%clk 0:02:18.9]} 17... bxc6 {[%clk 0:02:49.5]} 18.
Bd3 {[%clk 0:01:56.3]} 18... Rb8 {[%clk 0:02:44.9]} 19. Ne4 {[%clk 0:01:44.6]}
19... Nxe4 {[%clk 0:02:34.7]} 20. Bxe4 {[%clk 0:01:45.5]} 20... Qd7 {[%clk
0:02:32]} 21. Bd3 {[%clk 0:01:27.3]} 21... a5 {[%clk 0:02:30.7]} 22. Rc2 {[%clk
0:01:20.3]} 22... Rb6 {[%clk 0:02:30.3]} 23. Rdc1 {[%clk 0:01:20.6]} 23... Reb8
{[%clk 0:02:30.8]} 24. Be4 {[%clk 0:00:52.3]} 24... Be7 {[%clk 0:02:29.4]} 25.
Bf3 {[%clk 0:00:47.7]} 25... Bf6 {[%clk 0:02:28.7]} 26. Qd2 {[%clk 0:00:40.4]}
26... a4 {[%clk 0:02:19.1]} 27. Be4 {[%clk 0:00:31.7]} 27... h5 {[%clk
0:02:16.9]} 28. h3 {[%clk 0:00:28.6]} 28... g6 {[%clk 0:02:16.5]} 29. g4 {[%clk
0:00:22.2]} 29... hxg4 {[%clk 0:02:15]} 30. hxg4 {[%clk 0:00:23.1]} 30... Kg7
{[%clk 0:02:14.7]} 31. Kg2 {[%clk 0:00:22.8]} 31... Rh8 {[%clk 0:02:01.9]} 32.
f3 {[%clk 0:00:20.5]} 32... Nxe3+ {[%clk 0:01:57.1]} 33. Qxe3 {[%clk 0:00:19.6]}
33... Bxd4 {[%clk 0:01:58]} 34. Qe2 {[%clk 0:00:19.1]} 34... c5 {[%clk
0:01:57.3]} 35. Rh1 {[%clk 0:00:19.1]} 35... Rxh1 {[%clk 0:01:56.6]} 36. Kxh1
{[%clk 0:00:20]} 36... Rb8 {[%clk 0:01:52.7]} 37. Kg2 {[%clk 0:00:17.3]} 37...
Qd6 {[%clk 0:01:52.7]} 0-1

[Event "*** Titled Tuesday Blitz"]
[Site "Chess.com"]
[Date "2021.04.06"]
[Round "5"]
[White "CakeinSpace2002"]
[Black "jamalm2"]
[Result "1-0"]
[WhiteElo "2315"]
[BlackElo "2016"]
[TimeControl "180+1"]
[EndTime "10:56:10 PDT"]
[Termination "CakeinSpace2002 won on time"]

1. e4 {[%clk 0:02:59.9]} 1... c5 {[%clk 0:02:58.7]} 2. Nf3 {[%clk 0:02:59.9]}
2... d6 {[%clk 0:02:58.3]} 3. d4 {[%clk 0:03:00.8]} 3... cxd4 {[%clk 0:02:58]}
4. Nxd4 {[%clk 0:03:01.7]} 4... Nf6 {[%clk 0:02:58]} 5. Nc3 {[%clk 0:03:01.9]}
5... a6 {[%clk 0:02:58.4]} 6. Bg5 {[%clk 0:03:02]} 6... e5 {[%clk 0:02:57.4]} 7.
Nf3 {[%clk 0:03:00.1]} 7... Be7 {[%clk 0:02:52.5]} 8. Bc4 {[%clk 0:02:59.7]}
8... O-O {[%clk 0:02:49.2]} 9. h3 {[%clk 0:02:59]} 9... Be6 {[%clk 0:02:41.3]}
10. Qe2 {[%clk 0:02:56.9]} 10... Nbd7 {[%clk 0:02:39.8]} 11. Rd1 {[%clk
0:02:45.7]} 11... Qc7 {[%clk 0:02:30.9]} 12. Bb3 {[%clk 0:02:41.6]} 12... b5
{[%clk 0:02:26.5]} 13. O-O {[%clk 0:02:40.8]} 13... Nb6 {[%clk 0:02:13.2]} 14.
Bxf6 {[%clk 0:02:36]} 14... Bxf6 {[%clk 0:02:12.5]} 15. Bd5 {[%clk 0:02:35.5]}
15... Nxd5 {[%clk 0:02:09.8]} 16. Nxd5 {[%clk 0:02:36.4]} 16... Bxd5 {[%clk
0:02:08.3]} 17. Rxd5 {[%clk 0:02:37.3]} 17... Rac8 {[%clk 0:02:04.3]} 18. c3
{[%clk 0:02:37.3]} 18... Be7 {[%clk 0:02:03.4]} 19. Rfd1 {[%clk 0:02:37.5]}
19... h6 {[%clk 0:01:53.7]} 20. Qd3 {[%clk 0:02:35.2]} 20... Rfd8 {[%clk
0:01:45.3]} 21. Nh2 {[%clk 0:02:30.4]} 21... Qc4 {[%clk 0:01:38.3]} 22. a3
{[%clk 0:02:27.8]} 22... Qxd3 {[%clk 0:01:37.1]} 23. R1xd3 {[%clk 0:02:28.7]}
23... Rc4 {[%clk 0:01:37]} 24. f3 {[%clk 0:02:28.1]} 24... g6 {[%clk 0:01:25.6]}
25. Ng4 {[%clk 0:02:27.7]} 25... Bf8 {[%clk 0:01:25]} 26. Ne3 {[%clk 0:02:26.1]}
26... Rc6 {[%clk 0:01:21]} 27. Rxe5 {[%clk 0:02:25.6]} 27... dxe5 {[%clk
0:01:06.6]} 28. Rxd8 {[%clk 0:02:25]} 28... Rd6 {[%clk 0:01:06.1]} 29. Rxd6
{[%clk 0:02:24.4]} 29... Bxd6 {[%clk 0:01:05.5]} 30. Nd5 {[%clk 0:02:24.5]}
30... Bc5+ {[%clk 0:01:03.8]} 31. Kf1 {[%clk 0:02:24.6]} 31... f5 {[%clk
0:00:58]} 32. Nc7 {[%clk 0:02:21.5]} 32... a5 {[%clk 0:00:54.1]} 33. Nxb5 {[%clk
0:02:21.1]} 33... Kf7 {[%clk 0:00:52.3]} 34. Ke2 {[%clk 0:02:21]} 34... Ke6
{[%clk 0:00:51.4]} 35. b4 {[%clk 0:02:19.9]} 35... axb4 {[%clk 0:00:49.7]} 36.
cxb4 {[%clk 0:02:20.8]} 36... Be7 {[%clk 0:00:27.4]} 37. Kd3 {[%clk 0:02:15.7]}
37... f4 {[%clk 0:00:26.1]} 38. Nc3 {[%clk 0:02:14.3]} 38... g5 {[%clk
0:00:25.7]} 39. Nd5 {[%clk 0:02:14]} 39... Bd8 {[%clk 0:00:17.2]} 40. a4 {[%clk
0:02:13.7]} 40... h5 {[%clk 0:00:16.3]} 41. a5 {[%clk 0:02:11.8]} 1-0

[Event "*** Titled Tuesday Blitz"]
[Site "Chess.com"]
[Date "2021.04.06"]
[Round "5"]
[White "Irishchessman16"]
[Black "Ave_Mariia"]
[Result "0-1"]
[WhiteElo "2273"]
[BlackElo "2468"]
[TimeControl "180+1"]
[EndTime "10:56:11 PDT"]
[Termination "Ave_Mariia won by resignation"]

1. e4 {[%clk 0:03:00.9]} 1... c5 {[%clk 0:03:00.2]} 2. Nf3 {[%clk 0:03:00.2]}
2... d6 {[%clk 0:03:00.6]} 3. d4 {[%clk 0:03:00.4]} 3... cxd4 {[%clk 0:03:01.5]}
4. Nxd4 {[%clk 0:03:00.9]} 4... Nf6 {[%clk 0:03:02.1]} 5. Nc3 {[%clk 0:03:01.5]}
5... g6 {[%clk 0:03:02.7]} 6. Bg5 {[%clk 0:02:47.6]} 6... Bg7 {[%clk 0:03:02.7]}
7. Qe2 {[%clk 0:02:46.9]} 7... O-O {[%clk 0:02:57.7]} 8. O-O-O {[%clk
0:02:46.4]} 8... Nc6 {[%clk 0:02:49.9]} 9. Nxc6 {[%clk 0:02:43.9]} 9... bxc6
{[%clk 0:02:50.8]} 10. e5 {[%clk 0:02:44.1]} 10... Qa5 {[%clk 0:02:13.7]} 11.
Bxf6 {[%clk 0:02:35.1]} 11... exf6 {[%clk 0:02:12.2]} 12. exd6 {[%clk
0:02:34.4]} 12... Be6 {[%clk 0:01:54.4]} 13. Qa6 {[%clk 0:02:24.3]} 13... Qc5
{[%clk 0:01:51.7]} 14. Ne4 {[%clk 0:02:16.2]} 14... Qb4 {[%clk 0:01:48.9]} 15.
Nd2 {[%clk 0:01:37]} 15... Rab8 {[%clk 0:01:42.8]} 16. Nb3 {[%clk 0:01:34.9]}
16... Bd5 {[%clk 0:01:39.9]} 17. f3 {[%clk 0:01:24.7]} 17... Qxd6 {[%clk
0:01:38.1]} 18. Kb1 {[%clk 0:01:18.5]} 18... Qe7 {[%clk 0:01:29.9]} 19. Bd3
{[%clk 0:01:11.4]} 19... f5 {[%clk 0:01:28.5]} 20. Rhe1 {[%clk 0:01:02.2]} 20...
Qf6 {[%clk 0:01:28.5]} 21. Qa3 {[%clk 0:00:56.3]} 21... c5 {[%clk 0:01:23.6]}
22. c4 {[%clk 0:00:53.7]} 22... Be6 {[%clk 0:01:21.1]} 23. Re2 {[%clk
0:00:52.9]} 23... Rfd8 {[%clk 0:01:18]} 24. Qxc5 {[%clk 0:00:31.6]} 24... Rd7
{[%clk 0:01:14.4]} 25. Red2 {[%clk 0:00:03.3]} 25... Rxd3 {[%clk 0:01:13.6]} 0-1

[Event "*** Titled Tuesday Blitz"]
[Site "Chess.com"]
[Date "2021.04.06"]
[Round "5"]
[White "Vesper2018"]
[Black "Leo_C"]
[Result "1-0"]
[WhiteElo "2557"]
[BlackElo "2391"]
[TimeControl "180+1"]
[EndTime "10:56:13 PDT"]
[Termination "Vesper2018 won by resignation"]

1. e4 {[%clk 0:03:00.9]} 1... c6 {[%clk 0:02:43.6]} 2. Nf3 {[%clk 0:02:59.4]}
2... d5 {[%clk 0:02:43.4]} 3. exd5 {[%clk 0:02:59.7]} 3... cxd5 {[%clk
0:02:43.2]} 4. Ne5 {[%clk 0:03:00]} 4... Nd7 {[%clk 0:02:41.1]} 5. d4 {[%clk
0:02:56.3]} 5... Ngf6 {[%clk 0:02:39.4]} 6. Bd3 {[%clk 0:02:53.7]} 6... g6
{[%clk 0:02:35.2]} 7. O-O {[%clk 0:02:51.8]} 7... Bg7 {[%clk 0:02:35.3]} 8. Re1
{[%clk 0:02:50.3]} 8... O-O {[%clk 0:02:35]} 9. c3 {[%clk 0:02:47.2]} 9... Nxe5
{[%clk 0:02:30.2]} 10. dxe5 {[%clk 0:02:45.7]} 10... Ne4 {[%clk 0:02:27.7]} 11.
f3 {[%clk 0:02:24.6]} 11... Nc5 {[%clk 0:02:03.3]} 12. Bc2 {[%clk 0:02:23.9]}
12... Qb6 {[%clk 0:01:55.6]} 13. Kh1 {[%clk 0:02:16.8]} 13... Be6 {[%clk
0:01:47]} 14. Nd2 {[%clk 0:01:59.2]} 14... Qc7 {[%clk 0:01:42.1]} 15. Qe2 {[%clk
0:01:58.3]} 15... g5 {[%clk 0:01:35.3]} 16. Nf1 {[%clk 0:01:57.3]} 16... Nd7
{[%clk 0:01:26.5]} 17. Qd3 {[%clk 0:01:50]} 17... f5 {[%clk 0:00:47.5]} 18. exf6
{[%clk 0:01:49.5]} 18... Rxf6 {[%clk 0:00:47.1]} 19. Qxh7+ {[%clk 0:01:48.2]}
19... Kf8 {[%clk 0:00:47.5]} 20. Bxg5 {[%clk 0:01:42.9]} 20... Bg8 {[%clk
0:00:46.7]} 21. Qh4 {[%clk 0:01:36.1]} 21... Ne5 {[%clk 0:00:40.8]} 22. Bxf6
{[%clk 0:01:29.4]} 22... Bxf6 {[%clk 0:00:40.3]} 23. Qh6+ {[%clk 0:01:30.1]}
23... Bg7 {[%clk 0:00:39.9]} 24. Qg5 {[%clk 0:01:27.4]} 24... Bf6 {[%clk
0:00:38.6]} 25. Qf4 {[%clk 0:01:27.4]} 25... Qd6 {[%clk 0:00:31]} 26. Ng3 {[%clk
0:01:25.2]} 26... Rc8 {[%clk 0:00:26.4]} 27. Nf5 {[%clk 0:01:24.6]} 27... Qc7
{[%clk 0:00:26.3]} 28. Qh6+ {[%clk 0:01:23]} 28... Ke8 {[%clk 0:00:18.3]} 29.
Ba4+ {[%clk 0:01:18.7]} 29... Nd7 {[%clk 0:00:15.4]} 30. Qxf6 {[%clk 0:01:14.9]}
1-0

[Event "*** Titled Tuesday Blitz"]
[Site "Chess.com"]
[Date "2021.04.06"]
[Round "5"]
[White "RD4ever"]
[Black "GMRafpig"]
[Result "1-0"]
[WhiteElo "2882"]
[BlackElo "2610"]
[TimeControl "180+1"]
[EndTime "10:56:25 PDT"]
[Termination "RD4ever won by resignation"]

1. d4 {[%clk 0:03:00.9]} 1... Nf6 {[%clk 0:02:57.2]} 2. c4 {[%clk 0:03:01]} 2...
e6 {[%clk 0:02:57.4]} 3. Nc3 {[%clk 0:03:01.2]} 3... Bb4 {[%clk 0:02:56.1]} 4.
f3 {[%clk 0:03:01.4]} 4... O-O {[%clk 0:02:46.8]} 5. a3 {[%clk 0:03:00]} 5...
Bxc3+ {[%clk 0:02:46.1]} 6. bxc3 {[%clk 0:03:00.9]} 6... Nh5 {[%clk 0:02:44.3]}
7. Nh3 {[%clk 0:02:57.3]} 7... f5 {[%clk 0:02:42.1]} 8. Nf2 {[%clk 0:02:42]}
8... Nc6 {[%clk 0:02:32]} 9. e4 {[%clk 0:02:30.9]} 9... fxe4 {[%clk 0:02:26.2]}
10. fxe4 {[%clk 0:02:30.9]} 10... Nf4 {[%clk 0:02:12.7]} 11. g3 {[%clk
0:02:24.2]} 11... Ng6 {[%clk 0:02:11.9]} 12. Bg2 {[%clk 0:02:10.8]} 12... d6
{[%clk 0:02:08.3]} 13. O-O {[%clk 0:02:10]} 13... e5 {[%clk 0:02:06.5]} 14. Qh5
{[%clk 0:02:02.7]} 14... b6 {[%clk 0:01:50]} 15. Be3 {[%clk 0:01:47.9]} 15...
Qe8 {[%clk 0:01:28]} 16. Nh3 {[%clk 0:01:24.1]} 16... Ba6 {[%clk 0:01:20.1]} 17.
d5 {[%clk 0:01:10.9]} 17... Na5 {[%clk 0:00:51.7]} 18. Ng5 {[%clk 0:01:07.2]}
18... Rxf1+ {[%clk 0:00:50.7]} 19. Rxf1 {[%clk 0:00:56.1]} 19... Nf8 {[%clk
0:00:27.1]} 20. Rxf8+ {[%clk 0:00:45.8]} 20... Kxf8 {[%clk 0:00:26.6]} 21. Qxh7
{[%clk 0:00:46.4]} 21... Ke7 {[%clk 0:00:11.5]} 1-0

[Event "*** Titled Tuesday Blitz"]
[Site "Chess.com"]
[Date "2021.04.06"]
[Round "5"]
[White "KIEV-1"]
[Black "Das_Virus_2020"]
[Result "0-1"]
[WhiteElo "2266"]
[BlackElo "2450"]
[TimeControl "180+1"]
[EndTime "10:56:26 PDT"]
[Termination "Das_Virus_2020 won by resignation"]

1. e4 {[%clk 0:03:00.9]} 1... e6 {[%clk 0:02:55.6]} 2. d4 {[%clk 0:03:00.7]}
2... d5 {[%clk 0:02:55.5]} 3. Nc3 {[%clk 0:03:01.4]} 3... Nf6 {[%clk 0:02:55]}
4. e5 {[%clk 0:03:01.4]} 4... Nfd7 {[%clk 0:02:55]} 5. f4 {[%clk 0:03:02.3]}
5... c5 {[%clk 0:02:53.7]} 6. Nce2 {[%clk 0:03:03.2]} 6... Nc6 {[%clk
0:02:52.4]} 7. Nf3 {[%clk 0:03:03.6]} 7... Qb6 {[%clk 0:02:43.3]} 8. c3 {[%clk
0:03:03.8]} 8... a5 {[%clk 0:02:42.9]} 9. a4 {[%clk 0:02:51.7]} 9... Be7 {[%clk
0:02:37.3]} 10. dxc5 {[%clk 0:02:49.8]} 10... Nxc5 {[%clk 0:02:33.2]} 11. Ned4
{[%clk 0:02:49.6]} 11... O-O {[%clk 0:02:28.7]} 12. Be2 {[%clk 0:02:43.4]} 12...
f6 {[%clk 0:02:17]} 13. exf6 {[%clk 0:02:42.4]} 13... Bxf6 {[%clk 0:02:14.1]}
14. Nxc6 {[%clk 0:02:42.5]} 14... bxc6 {[%clk 0:02:04.7]} 15. Be3 {[%clk
0:02:40.6]} 15... Qxb2 {[%clk 0:02:02.5]} 16. O-O {[%clk 0:02:29.1]} 16... Qxc3
{[%clk 0:01:30.4]} 17. Bf2 {[%clk 0:02:28.6]} 17... Ne4 {[%clk 0:01:25.1]} 18.
Rc1 {[%clk 0:02:27.9]} 18... Nxf2 {[%clk 0:01:20]} 19. Rxf2 {[%clk 0:02:25.1]}
19... Qe3 {[%clk 0:01:18.1]} 20. Rxc6 {[%clk 0:02:23.8]} 20... Bd7 {[%clk
0:01:08.9]} 21. Rc7 {[%clk 0:02:21.9]} 21... Rac8 {[%clk 0:01:04.1]} 22. Rxd7
{[%clk 0:01:55.5]} 22... Rc1 {[%clk 0:01:02.3]} 23. Qxc1 {[%clk 0:01:56]} 23...
Qxc1+ {[%clk 0:01:02]} 24. Bf1 {[%clk 0:01:56.3]} 24... Qe3 {[%clk 0:01:00.4]}
25. g3 {[%clk 0:01:56.5]} 25... e5 {[%clk 0:00:51.4]} 26. Rxd5 {[%clk 0:01:50]}
26... e4 {[%clk 0:00:39.9]} 27. Ne5 {[%clk 0:01:47.1]} 27... Bxe5 {[%clk
0:00:33.5]} 28. Rxe5 {[%clk 0:01:48]} 28... Rd8 {[%clk 0:00:31.9]} 29. Kg2
{[%clk 0:01:37.2]} 29... Rd2 {[%clk 0:00:29]} 30. Bc4+ {[%clk 0:01:36.8]} 30...
Kf8 {[%clk 0:00:27.3]} 31. Rxd2 {[%clk 0:01:23.9]} 31... Qxd2+ {[%clk
0:00:26.7]} 32. Kh3 {[%clk 0:01:24.5]} 32... e3 {[%clk 0:00:26.3]} 33. Bb5
{[%clk 0:01:23.1]} 33... g6 {[%clk 0:00:21.9]} 34. g4 {[%clk 0:01:22.4]} 34...
Kg7 {[%clk 0:00:20]} 35. Kg3 {[%clk 0:01:22.6]} 35... Qf2+ {[%clk 0:00:19.1]}
36. Kh3 {[%clk 0:01:18.7]} 36... Qxf4 {[%clk 0:00:18.9]} 37. Re8 {[%clk
0:01:18.1]} 37... h6 {[%clk 0:00:16.2]} 38. Re7+ {[%clk 0:01:18.1]} 38... Kf6
{[%clk 0:00:15.6]} 39. Re8 {[%clk 0:01:18.4]} 39... Qf3+ {[%clk 0:00:15.6]} 40.
Kh4 {[%clk 0:01:17.9]} 40... g5+ {[%clk 0:00:15.8]} 0-1

[Event "*** Titled Tuesday Blitz"]
[Site "Chess.com"]
[Date "2021.04.06"]
[Round "5"]
[White "TimKett"]
[Black "Sueetin"]
[Result "0-1"]
[WhiteElo "2239"]
[BlackElo "2399"]
[TimeControl "180+1"]
[EndTime "10:56:26 PDT"]
[Termination "Sueetin won by resignation"]

1. e4 {[%clk 0:03:00.9]} 1... e6 {[%clk 0:03:00.2]} 2. d4 {[%clk 0:03:00.2]}
2... d5 {[%clk 0:03:00.8]} 3. Nc3 {[%clk 0:03:00.3]} 3... Nf6 {[%clk 0:03:01]}
4. Bg5 {[%clk 0:02:59.2]} 4... dxe4 {[%clk 0:03:00.9]} 5. Nxe4 {[%clk
0:02:57.3]} 5... Be7 {[%clk 0:03:01.3]} 6. Bxf6 {[%clk 0:02:56.9]} 6... Bxf6
{[%clk 0:03:02]} 7. Nf3 {[%clk 0:02:55.7]} 7... Nd7 {[%clk 0:03:02.4]} 8. Bc4
{[%clk 0:02:54.1]} 8... O-O {[%clk 0:03:00.4]} 9. Qe2 {[%clk 0:02:53]} 9... a6
{[%clk 0:02:59.9]} 10. O-O-O {[%clk 0:02:52.3]} 10... b5 {[%clk 0:02:59.9]} 11.
Bb3 {[%clk 0:02:47]} 11... Bb7 {[%clk 0:02:58]} 12. d5 {[%clk 0:02:44.7]} 12...
exd5 {[%clk 0:02:57.6]} 13. Bxd5 {[%clk 0:02:42.7]} 13... c6 {[%clk 0:02:56.1]}
14. Bb3 {[%clk 0:02:40.1]} 14... Qc7 {[%clk 0:02:43.4]} 15. Rd6 {[%clk
0:02:15.2]} 15... c5 {[%clk 0:02:30]} 16. Rhd1 {[%clk 0:02:00.1]} 16... Bxe4
{[%clk 0:02:08.5]} 17. Qxe4 {[%clk 0:01:52.9]} 17... Nb6 {[%clk 0:02:08.4]} 18.
Rxf6 {[%clk 0:01:34.4]} 18... gxf6 {[%clk 0:02:06.2]} 19. Qg4+ {[%clk
0:01:32.8]} 19... Kh8 {[%clk 0:02:05.9]} 20. Qh4 {[%clk 0:01:33.3]} 20... Qc6
{[%clk 0:01:35.8]} 21. Qf4 {[%clk 0:00:55.7]} 21... c4 {[%clk 0:01:15.3]} 22.
Rd6 {[%clk 0:00:54.7]} 22... Nd5 {[%clk 0:01:15.7]} 23. Qg3 {[%clk 0:00:35.3]}
23... Qc5 {[%clk 0:00:48.1]} 0-1

[Event "*** Titled Tuesday Blitz"]
[Site "Chess.com"]
[Date "2021.04.06"]
[Round "5"]
[White "Mikhal867"]
[Black "kingofthenil"]
[Result "0-1"]
[WhiteElo "2450"]
[BlackElo "2632"]
[TimeControl "180+1"]
[EndTime "10:56:29 PDT"]
[Termination "kingofthenil won by resignation"]

1. c4 {[%clk 0:03:00.9]} 1... e6 {[%clk 0:02:57]} 2. g3 {[%clk 0:03:00]} 2...
Ke7 {[%clk 0:02:56]} 3. d4 {[%clk 0:02:58.2]} 3... Kf6 {[%clk 0:02:55.7]} 4. Nc3
{[%clk 0:02:56.9]} 4... Ke7 {[%clk 0:02:48.4]} 5. e4 {[%clk 0:02:55.4]} 5... Ke8
{[%clk 0:02:48.2]} 6. Bg2 {[%clk 0:02:53]} 6... Bb4 {[%clk 0:02:46.8]} 7. a3
{[%clk 0:02:50.8]} 7... Bxc3+ {[%clk 0:02:46.7]} 8. bxc3 {[%clk 0:02:51.2]} 8...
d6 {[%clk 0:02:47.6]} 9. Qg4 {[%clk 0:02:48]} 9... Kf8 {[%clk 0:02:42.4]} 10. h4
{[%clk 0:02:47.1]} 10... e5 {[%clk 0:02:41]} 11. Qe2 {[%clk 0:02:45.9]} 11...
Nc6 {[%clk 0:02:40.2]} 12. Nf3 {[%clk 0:02:39.9]} 12... Bg4 {[%clk 0:02:39.5]}
13. Be3 {[%clk 0:02:38]} 13... Nf6 {[%clk 0:02:29.5]} 14. Qd3 {[%clk 0:02:37.9]}
14... Qe7 {[%clk 0:02:19.6]} 15. Nh2 {[%clk 0:02:32.5]} 15... Bd7 {[%clk
0:02:19.3]} 16. O-O {[%clk 0:02:22.9]} 16... h6 {[%clk 0:02:12.4]} 17. c5 {[%clk
0:02:22]} 17... dxc5 {[%clk 0:02:10.7]} 18. dxe5 {[%clk 0:02:19.8]} 18... Nxe5
{[%clk 0:02:10.4]} 19. Qb1 {[%clk 0:02:17.5]} 19... Bc6 {[%clk 0:02:09.1]} 20.
Re1 {[%clk 0:02:11.1]} 20... g5 {[%clk 0:01:49.7]} 21. hxg5 {[%clk 0:02:06.8]}
21... hxg5 {[%clk 0:01:50.6]} 22. Bxg5 {[%clk 0:02:06.5]} 22... Rxh2 {[%clk
0:01:50.6]} 23. Bxf6 {[%clk 0:02:04.3]} 23... Rxg2+ {[%clk 0:01:39.7]} 24. Kxg2
{[%clk 0:02:04.2]} 24... Qxf6 {[%clk 0:01:40.6]} 25. f4 {[%clk 0:02:03]} 25...
Rd8 {[%clk 0:01:39.5]} 26. Re2 {[%clk 0:01:50.4]} 26... Nd3 {[%clk 0:01:18.5]}
27. Qc2 {[%clk 0:01:24.3]} 27... Ke7 {[%clk 0:01:09]} 28. Re3 {[%clk 0:01:19.2]}
28... c4 {[%clk 0:01:04.8]} 29. Rh1 {[%clk 0:01:10]} 29... Rg8 {[%clk
0:01:00.7]} 30. Kf1 {[%clk 0:01:09.9]} 30... Rxg3 {[%clk 0:00:53.7]} 31. Rxg3
{[%clk 0:01:01.8]} 31... Qxf4+ {[%clk 0:00:54]} 32. Kg2 {[%clk 0:00:54]} 32...
Qxe4+ {[%clk 0:00:53.9]} 33. Kh3 {[%clk 0:00:49.5]} 33... Qxh1+ {[%clk
0:00:47.5]} 34. Kg4 {[%clk 0:00:49]} 34... Qe4+ {[%clk 0:00:46.5]} 35. Kh5
{[%clk 0:00:45.9]} 35... Nf4+ {[%clk 0:00:46]} 36. Kh6 {[%clk 0:00:45.9]} 36...
Qxc2 {[%clk 0:00:43.8]} 0-1

[Event "*** Titled Tuesday Blitz"]
[Site "Chess.com"]
[Date "2021.04.06"]
[Round "5"]
[White "Ural_bogatyr"]
[Black "LiverpooL174"]
[Result "0-1"]
[WhiteElo "2462"]
[BlackElo "2666"]
[TimeControl "180+1"]
[EndTime "10:56:34 PDT"]
[Termination "LiverpooL174 won by resignation"]

1. e4 {[%clk 0:02:55.8]} 1... c6 {[%clk 0:03:00.3]} 2. d4 {[%clk 0:02:55.2]}
2... d5 {[%clk 0:03:01.2]} 3. e5 {[%clk 0:02:55.7]} 3... Bf5 {[%clk 0:03:00.7]}
4. Ne2 {[%clk 0:02:56.1]} 4... e6 {[%clk 0:03:00.9]} 5. Ng3 {[%clk 0:02:56.8]}
5... Bg6 {[%clk 0:03:00.9]} 6. h4 {[%clk 0:02:57.5]} 6... h6 {[%clk 0:03:01.1]}
7. h5 {[%clk 0:02:58.2]} 7... Bh7 {[%clk 0:03:01.8]} 8. Bd3 {[%clk 0:02:59]}
8... Bxd3 {[%clk 0:03:02.4]} 9. cxd3 {[%clk 0:02:59.9]} 9... c5 {[%clk 0:03:02]}
10. dxc5 {[%clk 0:03:00.8]} 10... Bxc5 {[%clk 0:03:00.6]} 11. d4 {[%clk
0:03:01.2]} 11... Bb6 {[%clk 0:03:00.7]} 12. Nc3 {[%clk 0:03:02.1]} 12... Nc6
{[%clk 0:02:59.8]} 13. Be3 {[%clk 0:03:02.5]} 13... a6 {[%clk 0:03:00.3]} 14.
O-O {[%clk 0:03:01.1]} 14... Nge7 {[%clk 0:02:56.1]} 15. Qg4 {[%clk 0:03:01.3]}
15... Kf8 {[%clk 0:02:49.2]} 16. f4 {[%clk 0:03:01]} 16... Bxd4 {[%clk
0:02:47.4]} 17. Nd1 {[%clk 0:02:44.2]} 17... Bxe3+ {[%clk 0:02:41.5]} 18. Nxe3
{[%clk 0:02:45.1]} 18... Qb6 {[%clk 0:02:42.3]} 19. Rae1 {[%clk 0:02:41.5]}
19... Nd4 {[%clk 0:02:34.6]} 20. Kh1 {[%clk 0:02:38.7]} 20... g6 {[%clk
0:02:30.1]} 21. hxg6 {[%clk 0:02:36.9]} 21... fxg6 {[%clk 0:02:31]} 22. Qh4
{[%clk 0:02:20.4]} 22... Rh7 {[%clk 0:02:26.7]} 23. f5 {[%clk 0:01:50.4]} 23...
Ndxf5 {[%clk 0:02:16.7]} 24. Nexf5 {[%clk 0:01:48.8]} 24... exf5 {[%clk
0:02:14.9]} 25. e6 {[%clk 0:01:45.4]} 25... Kg8 {[%clk 0:02:13.5]} 26. Rf3
{[%clk 0:01:30.1]} 26... Rf8 {[%clk 0:02:13.8]} 27. Rb3 {[%clk 0:01:18.9]} 27...
Qc7 {[%clk 0:02:14]} 28. Nh5 {[%clk 0:01:15]} 28... gxh5 {[%clk 0:02:11.5]} 29.
Qd4 {[%clk 0:01:09.2]} 29... Rg7 {[%clk 0:02:09.9]} 30. Rh3 {[%clk 0:01:03.2]}
30... Rg4 {[%clk 0:02:05.4]} 31. Qd2 {[%clk 0:00:58.6]} 31... Qf4 {[%clk
0:02:03.5]} 32. Qc2 {[%clk 0:00:54.1]} 32... Rh4 {[%clk 0:02:01.1]} 33. Qc5
{[%clk 0:00:48.8]} 33... Rxh3+ {[%clk 0:01:55.9]} 34. gxh3 {[%clk 0:00:49.7]}
34... Qf3+ {[%clk 0:01:55.6]} 35. Kh2 {[%clk 0:00:50]} 35... Qf4+ {[%clk
0:01:52.3]} 36. Kh1 {[%clk 0:00:50]} 36... Qf3+ {[%clk 0:01:29.3]} 37. Kh2
{[%clk 0:00:49.2]} 37... Rc8 {[%clk 0:01:28.9]} 38. Rg1+ {[%clk 0:00:44.3]}
38... Kf8 {[%clk 0:01:27.1]} 0-1